Cogmind - Beta 12 @@@ ROGUE MODE // 2023.04.04 @ 23:15:38 Player: 3.14 Result: Self-destructed Performance ------------- Evolutions (7) 3500 Regions Visited (21) 4200 Robots Destroyed (247) 1235 Value Destroyed (10698) 10698 Prototype IDs (27) 540 Alien Tech Used (0) 0 Bonus (3776) 3776 TOTAL SCORE: 23949 Bonus ------- High Alert Combat Kills 1146 Follower Combat Kills 122 Entered Garrisons 200 Entered DSFs 500 Met Data Miner 300 Met Warlord at Base 500 MAIN.C Attacked Warlord 500 Warlord Defense Kills 526 Friendly Fire -18 Cogmind --------- Core Integrity 1001/1300 Matter 76/300 Energy 535/535 System Corruption 17% Temperature Cool (9) Movement Immobile (Siege) Ox1 Location -3/Research Parts ------- > --- POWER (2) -------- Reinforced Fission Core Reinforced Antimatter Reactor > --- PROPULSION (7) --- Medium Treads Medium Treads Armored Medium Treads Heavy Treads Advanced Heavy Treads > --- UTILITY (8) ------ Advanced Cooling System Humpback Experimental Targeting Computer Layered Medium Armor Plating Layered Medium Armor Plating System Mapper > --- WEAPON (4) ------- Coil Gun Coil Gun Railgun Railgun > --- INVENTORY (35) --- Micro Antimatter Reactor Advanced Heat Sink Improved Cooling System Cargo Storage Unit Advanced Signal Interpreter Transmission Jammer Improved Transmission Jammer Layered Medium Armor Plating Layered Medium Armor Plating Layered Medium Armor Plating Layered Medium Armor Plating Layered Heavy Armor Plating Layered Heavy Armor Plating Layered Heavy Armor Plating Thermal Shield EM Disruption Field Long-range Tractor Beam Gamma Rifle Gamma Rifle Minigun Minigun Minigun Minigun Coil Gun Makeshift Axe Peak State ------------ > --- POWER ------------ Vortex Chain Reactor > --- PROPULSION ------- Armored Medium Treads Armored Medium Treads Heavy Treads Biometal Medium Treads Advanced Heavy Treads > --- UTILITY ---------- Advanced Cooling System Humpback Experimental Core Analyzer Improved Heavy Armor Plating Focal Shield System Mapper > --- WEAPON ----------- Coil Gun Coil Gun Railgun Railgun > --- INVENTORY -------- Reinforced Antimatter Reactor Micro Antimatter Reactor Medium Treads Advanced Heavy Treads Advanced Heat Sink Improved Cooling System Cargo Storage Unit Advanced Signal Interpreter Experimental Targeting Computer Transmission Jammer Improved Transmission Jammer Layered Medium Armor Plating Layered Medium Armor Plating Layered Heavy Armor Plating Layered Heavy Armor Plating Layered Heavy Armor Plating Thermal Shield EM Disruption Field Long-range Tractor Beam Gamma Rifle Gamma Rifle Minigun Minigun Minigun Minigun Coil Gun Coil Gun Heavy Machine Gun Railgun Makeshift Axe [Rating: 152] Favorites ----------- Power Heavy Ion Engine Engine Heavy Ion Engine Power Core Reinforced Fission Core Reactor Reinforced Antimatter Reactor Propulsion Armored Medium Treads Treads Armored Medium Treads Leg Aluminum Leg Utility Humpback Device Weapon Cycler Storage Humpback Processor Experimental Core Analyzer Hackware System Mapper Protection Hardened Medium Armor Plating Weapon Minigun Energy Gun Improved EM Shotgun Energy Cannon Beam Cannon Ballistic Gun Minigun Launcher Improved Grenade Launcher Slashing Weapon Makeshift Axe Build | -11 -10 -9 -8 -7 -7 -7 -7 -6 -6 -6 -5 -5 -5 -5 -5 -5 -4 -4 -4 -4 -3 ------- Run | Jun Mat Mat Mat Fac Low Low Dat Pro Fac DSF Fac Gar Fac Upp Upp War Pro Fac Upp Upp Res Slots Evolved 14 | . . 2 2 2 . . . . 2 . 2 . . . . . . 2 . . 2 Power 1 | . . . . . . . . . . . 1 . . . . . . . . . . Propulsion 5 | . . 1 1 . . . . . 2 . . . . . . . . 1 . . . Utility 6 | . . 1 1 1 . . . . . . 1 . . . . . . 1 . . 1 Weapon 2 | . . . . 1 . . . . . . . . . . . . . . . . 1 Parts Attached 235 | . 7 22 20 21 . 3 3 2 2 11 5 23 . 5 1 5 . 10 7 . 88 Power 12 | . . 4 . . . . . . . . 1 1 . . . 2 . . . . 4 Engine 6 | . . 4 . . . . . . . . 1 1 . . . . . . . . . Core 1 | . . . . . . . . . . . . . . . . . . . . . 1 Reactor 5 | . . . . . . . . . . . . . . . . 2 . . . . 3 Propulsion 54 | . 4 5 7 5 . . . . 2 6 1 5 . . 1 . . 1 3 . 14 Treads 54 | . 4 5 7 5 . . . . 2 6 1 5 . . 1 . . 1 3 . 14 Leg . | . . . . . . . . . . . . . . . . . . . . . . Wheel . | . . . . . . . . . . . . . . . . . . . . . . Hover . | . . . . . . . . . . . . . . . . . . . . . . Flight . | . . . . . . . . . . . . . . . . . . . . . . Utility 101 | . 2 3 6 13 . 3 . . . 3 1 10 . 1 . 2 . 7 3 . 47 Device 55 | . . 2 . 6 . 1 . . . 2 . 7 . 1 . 1 . 2 1 . 32 Storage 4 | . . 1 . . . 1 . . . . . . . . . . . . 1 . 1 Processor 9 | . 2 . 2 1 . . . . . . . . . . . 1 . 1 . . 2 Hackware 3 | . . . . . . . . . . . . . . . . . . 1 . . 2 Protection 30 | . . . 4 6 . 1 . . . 1 1 3 . . . . . 3 1 . 10 Artifact . | . . . . . . . . . . . . . . . . . . . . . . Weapon 68 | . 1 10 7 3 . . 3 2 . 2 2 7 . 4 . 1 . 2 1 . 23 Energy Gun 7 | . . 3 1 . . . . . . . . 1 . . . . . . . . 2 Energy Cannon 4 | . . 3 1 . . . . . . . . . . . . . . . . . . Ballistic Gun 51 | . 1 2 4 3 . . 3 1 . 2 2 5 . 4 . 1 . 2 1 . 20 Ballistic Cannon . | . . . . . . . . . . . . . . . . . . . . . . Launcher 5 | . . 2 1 . . . . 1 . . . 1 . . . . . . . . . Special Weapon . | . . . . . . . . . . . . . . . . . . . . . . Impact Weapon . | . . . . . . . . . . . . . . . . . . . . . . Slashing Weapon 1 | . . . . . . . . . . . . . . . . . . . . . 1 Piercing Weapon . | . . . . . . . . . . . . . . . . . . . . . . Special Melee Weapon . | . . . . . . . . . . . . . . . . . . . . . . Unidentified Prototypes 12 | . . 3 4 . . . . . . . . 1 . . . 1 . 2 . . 1 Parts Lost 27 | . 1 . 4 2 . . . . . 4 . 3 . . . 1 . 2 2 . 8 Power 1 | . . . . . . . . . . . . . . . . . . . . . 1 Propulsion 6 | . . . 1 1 . . . . . 1 . 1 . . . . . . 2 . . Utility 15 | . 1 . 3 1 . . . . . 2 . 1 . . . 1 . 1 . . 5 Weapon 5 | . . . . . . . . . . 1 . 1 . . . . . 1 . . 2 Highest Loss Streak 4 | . 1 . 3 1 . . . . . 3 . 3 . . . 1 . 2 2 . 4 To Critical Strikes 3 | . . . . . . . . . . . . 1 . . . . . . 2 . . Average Slot Usage (%) 88 | . 98 95 99 99 100 92 71 92 93 92 94 82 82 82 82 82 82 83 85 89 81 Engine 6 | . 14 10 9 7 7 7 7 7 6 6 11 10 11 11 11 9 . . . . . Reactor 2 | . . . . . . . . . . . . . . . . 1 11 10 10 10 5 Treads 27 | . 26 32 36 29 30 30 30 30 40 39 35 24 23 23 23 23 23 26 27 31 25 Device 11 | . . 7 7 11 15 14 15 15 13 13 11 14 17 17 17 15 11 7 5 5 6 Storage 6 | . 14 11 9 7 7 7 7 7 6 6 5 5 5 5 5 5 5 5 5 5 4 Processor 5 | . 12 11 10 9 7 1 . . . . . . . . . . 5 10 10 10 7 Hackware 1 | . . . . . . . . . . . . . . . . . . 2 5 5 4 Protection 5 | . . . 9 8 7 6 7 7 6 6 11 7 5 5 5 5 5 4 4 5 4 Energy Gun 1 | . . 9 6 . . . . . . . . . . . . . . . . . . Ballistic Gun 17 | . 27 9 9 23 23 23 2 22 20 20 17 15 17 17 17 17 17 15 15 15 18 Naked Turns . | . . . . . . . . . . . . . . . . . . . . . . Heaviest Build 285 | 12 13 36 40 49 49 240 229 231 229 231 247 249 242 242 241 255 255 261 263 263 285 Greatest Support 237 | 20 46 66 86 86 86 86 86 86 126 168 140 225 205 130 130 204 204 231 231 212 237 Greatest Overweight (x) 2 | . . . . . . 2 2 2 1 1 1 1 1 1 1 1 1 1 1 1 1 Average Overweight (x) . | . . . . . . 1 2 2 1 1 1 1 1 1 1 1 1 1 1 1 1 Largest Inventory Capacity 35 | . 8 15 15 15 15 35 35 35 35 35 35 35 35 35 35 35 35 35 35 35 35 Average Capacity 29 | . 8 10 15 15 15 32 35 35 35 35 35 35 35 35 35 35 35 35 35 35 35 Most Carried 35 | . 8 15 15 15 15 23 23 23 22 35 35 35 31 33 32 35 35 34 30 27 35 Average Carried 25 | . 7 10 14 14 15 21 23 23 21 26 33 32 31 31 31 33 35 29 28 26 32 Final Capacity 35 | 8 8 15 15 15 15 35 35 35 35 35 35 35 35 35 35 35 35 35 35 35 35 Final Carried 35 | 6 8 15 15 15 15 23 23 23 21 35 33 31 31 31 32 35 35 29 25 27 29 Class Distribution -------------------- 41% | Hauler-Tank 16% | Hauler-Gunner 14% | Mutant 14% | Scavenger-Tank 7% | Scavenger-Gunner 3% | Scavenger-Mutant Dominant Class ---------------- Mutant | -10/Materials Mutant | -9/Materials Mutant | -8/Materials Scavenger-Tank | -7/Factory Scavenger-Tank | -7/Lower Caves Hauler-Tank | -7/Lower Caves Hauler-Mutant | -7/Data Miner Hauler-Tank | -6/Proximity Caves Hauler-Tank | -6/Factory Hauler-Tank | -6/DSF Hauler-Mutant | -5/Factory Hauler-Tank | -5/Garrison Hauler-Tank | -5/Factory Hauler-Tank | -5/Upper Caves Hauler-Tank | -5/Upper Caves Hauler-Tank | -5/Warlord Hauler-Gunner | -4/Proximity Caves Hauler-Gunner | -4/Factory Hauler-Gunner | -4/Upper Caves Hauler-Gunner | -4/Upper Caves Scavenger-Tank | -3/Research Resources | -11 -10 -9 -8 -7 -7 -7 -7 -6 -6 -6 -5 -5 -5 -5 -5 -5 -4 -4 -4 -4 -3 ----------- Run | Jun Mat Mat Mat Fac Low Low Dat Pro Fac DSF Fac Gar Fac Upp Upp War Pro Fac Upp Upp Res Matter Collected 9391 | 200 128 310 635 970 91 157 . 273 . 331 . 1300 . 339 62 206 180 340 231 29 3609 Remotely 2570 | . . . . 179 . . . . . 235 . 24 . . . . . 85 . . 2047 Salvage Created 13688 | . 176 967 1701 1229 42 93 . 254 . 401 . 1282 . 326 73 141 164 340 518 . 5981 Parts 783 | . 9 50 93 68 3 8 . 10 . 15 3 51 . 25 3 4 15 17 30 . 379 Haulers Intercepted 13 | . . 3 5 3 . . . . . . . . . . . . . . . . 2 Recyclers Shooed 11 | . . 2 . 2 . . . . . . . . . . . . . . . . 7 Parts Field Recycled . | . . . . . . . . . . . . . . . . . . . . . . Retrieved Matter . | . . . . . . . . . . . . . . . . . . . . . . Parts Self-Destructed 101 | . . . . . 3 12 . 11 . . . . . 27 3 . 15 . 30 . . Prevented . | . . . . . . . . . . . . . . . . . . . . . . Kills | -11 -10 -9 -8 -7 -7 -7 -7 -6 -6 -6 -5 -5 -5 -5 -5 -5 -4 -4 -4 -4 -3 ------- Run | Jun Mat Mat Mat Fac Low Low Dat Pro Fac DSF Fac Gar Fac Upp Upp War Pro Fac Upp Upp Res Combat Hostiles Destroyed 200 | . 5 16 28 16 1 4 . 9 . 7 . 14 . 10 1 3 7 4 6 . 69 Guns 181 | . 5 8 23 16 1 4 . 7 . 7 . 11 . 10 1 3 7 4 6 . 68 Cannons 5 | . . 3 2 . . . . . . . . . . . . . . . . . . AOE 13 | . . 5 3 . . . . 2 . . . 3 . . . . . . . . . Classes Destroyed 20 | . 2 6 2 3 1 . . 1 . . . 1 . . . 1 . 1 . . 2 Worker 9 | . . 1 1 1 . . . . . . 1 . . . . . . . . . 5 Builder 6 | . . . 1 1 . . . . . . . . . . . . . . . . 4 Hauler 13 | . . 3 5 3 . . . . . . . . . . . . . . . . 2 Recycler 13 | . . 3 2 4 . . . . . . . . . . . . . . . . 4 Operator 2 | . . . . . . . . . . . . . . . . . . 1 . . 1 Drone 3 | . . . . . . . . 1 . . . . . . . . 2 . . . . Watcher 4 | . . 1 1 1 . . . . . . . . . . . . . . . . 1 Swarmer 50 | . 1 3 4 6 . 4 . 4 . . . 8 . 8 . . 4 . . . 8 Saboteur 2 | . . . . . . . . . . . . . . . . . . . . . 2 Grunt 68 | . 4 7 18 2 . . . 3 . 2 . 2 . . . . . 3 3 . 24 Brawler 5 | . . . 1 1 . . . . . . . . . . . . . . . . 3 Duelist 3 | . . 1 . 1 . . . . . . . . . . . . . . . . 1 Protector 1 | . . . . . . . . . . . . . . . . . . . . . 1 Sentry 20 | . . 5 5 2 . . . . . . . 1 . 1 1 . . . 1 . 4 Specialist 5 | . . . . 2 . . . . . 3 . . . . . . . . . . . Hunter 14 | . . . . 1 . . . . . 2 . 1 . 1 . 2 . 1 2 . 4 Programmer 23 | . . . . . 1 . . 1 . . . 1 . . . . 1 . . . 19 Heavy 2 | . . . . 1 . . . . . . . . . . . . . . . . 1 Behemoth 3 | . . . . . . . . . . . . 1 . . . . . . . . 2 Executioner 1 | . . . . . . . . . . . . . . . . 1 . . . . . Best Kill Streak 13 | . 2 9 13 4 1 4 . 4 . 4 1 4 . 5 1 3 5 3 3 . 10 Combat Bots Only 10 | . 2 8 7 3 1 4 . 4 . 4 . 4 . 5 1 3 5 3 3 . 10 Max Kills in Single Turn 3 | . 1 2 3 2 1 1 . 3 . 2 1 3 . 2 1 1 1 1 1 . 2 Gunslinging 1 | . . . . 1 . . . 1 . 1 . . . 1 . . . . . . 1 Exploded 3 | . . 2 1 . . . . 1 . . . 3 . . . . . . . . . Melee . | . . . . . . . . . . . . . . . . . . . . . . Uniques/NPCs Destroyed . | . . . . . . . . . . . . . . . . . . . . . . Combat | -11 -10 -9 -8 -7 -7 -7 -7 -6 -6 -6 -5 -5 -5 -5 -5 -5 -4 -4 -4 -4 -3 -------- Run | Jun Mat Mat Mat Fac Low Low Dat Pro Fac DSF Fac Gar Fac Upp Upp War Pro Fac Upp Upp Res Damage Taken 16964 | . 304 417 1474 901 59 173 . 339 . 1194 . 1089 . 644 75 181 208 600 577 . 8729 Core 1260 | . 38 21 120 28 . . . 23 . 582 . 9 . 26 . 39 . 52 23 . 299 Absorbed by Shields 429 | . . . . . . . . . . 32 . 169 . 208 16 4 . . . . . Reduced by Siege Mode 403 | . . . . . . . . . . . . 22 . . . . . . 6 . 375 Regen/Repaired (Parts) 253 | . . 70 . . . . . . . . . . . . . 183 . . . . . Core Remaining (%) 83 | 100 84 94 78 . . . . 92 . 31 . . . . . . 92 . . 93 . Volleys Fired 627 | . 20 48 100 66 5 7 . 15 . 26 . 86 . 21 4 13 15 19 12 . 170 Largest 4 | . 2 2 2 3 3 3 . 3 . 3 . 3 . 3 3 3 3 3 3 . 4 Hottest 210 | . 40 105 106 78 78 78 . 78 . 78 . 78 . 78 73 75 75 91 99 . 210 Shots Fired 1856 | . 40 92 198 198 16 22 . 40 . 78 . 241 . 63 13 39 45 57 38 . 676 Gun 1811 | . 40 69 182 198 16 22 . 37 . 78 . 238 . 63 13 39 45 57 38 . 676 Cannon 33 | . . 19 14 . . . . . . . . . . . . . . . . . . Launcher 12 | . . 4 2 . . . . 3 . . . 3 . . . . . . . . . Special . | . . . . . . . . . . . . . . . . . . . . . . Kinetic 1709 | . 40 46 126 198 16 22 . 37 . 78 . 230 . 63 13 39 45 57 38 . 661 Thermal 81 | . . 19 54 . . . . . . . . 8 . . . . . . . . . Explosive 12 | . . 4 2 . . . . 3 . . . 3 . . . . . . . . . Electromagnetic 54 | . . 23 16 . . . . . . . . . . . . . . . . . 15 Robot Hit Streak 39 | . 9 33 17 11 3 5 . 7 . 6 . 28 . 6 16 17 2 12 14 . 39 Robot Miss Streak 6 | . 3 2 2 3 3 3 . 1 . 3 . 6 . 3 . 4 4 6 2 . 6 Penetration Max 2 | . . . . 1 . . . . . . . 1 . 1 . . . . 1 . 2 Secondary Targets 44 | . . . 1 2 . 1 . 2 . 1 . 2 . 5 . 2 1 . 3 . 24 Max Gunslinging Chain 2 | . . . 1 1 . 1 . 2 . 1 . 1 . 1 . 1 1 . 1 . 1 Autonomous 9 | . . . . . . . . . . . . 9 . . . . . . . . . Shots Hit Robots 1300 | . 26 69 144 127 7 8 . 26 . 50 . 199 . 38 11 30 17 37 26 . 485 Core Hits 611 | . 12 44 71 44 2 5 . 18 . 19 . 75 . 20 4 9 10 13 15 . 250 Critical Kills 30 | . . . . . . . . . . 2 . . . . . . . 3 6 . 19 Critical Parts Destroyed 25 | . . . . . 1 . . . . 1 . . . . . . . 5 4 . 14 Critical Strikes 57 | . . . 1 . 1 . . . . 3 . . . . . . . 8 10 . 34 Burn 1 | . . . 1 . . . . . . . . . . . . . . . . . . Destroy 56 | . . . . . 1 . . . . 3 . . . . . . . 8 10 . 34 Melee Attacks 10 | . . . . . . . . . . . . . . . . . . . . . 10 Impact . | . . . . . . . . . . . . . . . . . . . . . . Slashing 10 | . . . . . . . . . . . . . . . . . . . . . 10 Piercing . | . . . . . . . . . . . . . . . . . . . . . . Sneak Attacks 2 | . . . . . . . . . . . . . . . . . . . . . 2 Combat Hostiles . | . . . . . . . . . . . . . . . . . . . . . . Follow-up Attacks . | . . . . . . . . . . . . . . . . . . . . . . Damage Inflicted 26209 | . 293 1349 2915 2322 169 151 . 787 . 818 3 3993 . 729 184 539 277 406 191 . 11083 Guns 23785 | . 280 604 2262 2248 169 144 . 502 . 818 . 3676 . 692 184 539 277 375 191 . 10824 Cannons 450 | . . 265 185 . . . . . . . . . . . . . . . . . . Explosions 1462 | . . 450 449 . . . . 272 . . . 291 . . . . . . . . . Melee 150 | . . . . . . . . . . . . . . . . . . . . . 150 Ramming 362 | . 13 30 19 74 . 7 . 13 . . 3 26 . 37 . . . 31 . . 109 Kinetic 22102 | . 280 267 1414 2248 169 144 . 502 . 818 . 3379 . 692 184 539 277 375 191 . 10623 Thermal 1575 | . . 293 985 . . . . . . . . 297 . . . . . . . . . Explosive 1235 | . . 422 250 . . . . 272 . . . 291 . . . . . . . . . Electromagnetic 785 | . . 337 247 . . . . . . . . . . . . . . . . . 201 Impact . | . . . . . . . . . . . . . . . . . . . . . . Slashing 150 | . . . . . . . . . . . . . . . . . . . . . 150 Piercing . | . . . . . . . . . . . . . . . . . . . . . . Highest Corruption 17 | . 2 . . 2 3 3 3 3 . . . 1 1 1 1 1 . 1 1 1 17 Average Corruption 3 | . 2 . . 2 2 3 3 3 . . . 1 1 1 1 1 . 1 1 1 7 Corruption Purged 10 | . . . . . . . . . . . . . . . . . . . . . 10 Corruption Blocked . | . . . . . . . . . . . . . . . . . . . . . . Effects 157 | . 3 . . 6 8 19 4 19 . . . 3 2 2 8 1 . 2 3 . 77 Message Errors 38 | . 1 . . . . 3 3 3 . . . 2 . 1 4 1 . . . . 20 Matter Fused 37 | . 1 . . 2 3 9 . 3 . . . . . . 1 . . 2 . . 16 Heat Flow Errors 17 | . . . . 2 1 2 . 2 . . . . . . 1 . . . . . 9 Energy Discharges 13 | . . . . . 2 . . 4 . . . . . 1 . . . . 1 . 5 Parts Rejected 4 | . . . . 1 . . . . . . . . . . . . . . . . 3 Parts Fused 3 | . . . . . . . . . . . . . 1 . 1 . . . . . 1 Data Loss (minor) 12 | . . . . . 1 2 1 3 . . . . . . . . . . . . 5 Data Loss (major) 10 | . 1 . . 1 . 1 . 3 . . . . . . . . . . . . 4 Misfires 11 | . . . . . 1 1 . 1 . . . 1 . . 1 . . . 2 . 4 Alerts 4 | . . . . . . 1 . . . . . . 1 . . . . . . . 2 Weapon Failures 8 | . . . . . . . . . . . . . . . . . . . . . 8 Overload Shots . | . . . . . . . . . . . . . . . . . . . . . . Overflow Damage 127 | . . 6 . . . 3 . . . . . 14 . 32 . . . 10 . . 62 Projectiles 6 | . . 6 . . . . . . . . . . . . . . . . . . . Explosions 14 | . . . . . . . . . . . . 14 . . . . . . . . . Melee 107 | . . . . . . 3 . . . . . . . 32 . . . 10 . . 62 Knockbacks 1 | . . . . 1 . . . . . . . . . . . . . . . . . Impact 1 | . . . . 1 . . . . . . . . . . . . . . . . . Kinetic . | . . . . . . . . . . . . . . . . . . . . . . Secondary . | . . . . . . . . . . . . . . . . . . . . . . Self-Inflicted Damage 67 | . . . 7 . . . . . . . . 60 . . . . . . . . . Shots 2 | . . . 1 . . . . . . . . 1 . . . . . . . . . Rammed 35 | . 3 10 3 7 . 1 . 1 . . . 2 . 1 . . . 1 . . 6 Targets Rammed 43 | . 3 12 4 9 . 1 . 1 . . 1 2 . 1 . . . 2 . . 7 Kicked . | . . . . . . . . . . . . . . . . . . . . . . Crushed 8 | . . 2 1 2 . . . . . . 1 . . . . . . 1 . . 1 Highest Temperature 1729 | . 18 46 82 271 60 98 . 240 . 1729 . 268 . 1 243 10 40 24 36 . 351 Average Temperature 103 | . 9 15 27 78 35 56 . 99 . 617 . 83 . 1 138 7 13 10 15 . 56 Received Heat Transfer 2368 | . 90 153 684 87 . . . 148 . 30 . 63 . 14 14 . . 9 129 . 947 Effects 31 | . . . . . . . . . . 30 . . . . . . . . . . 1 Shutdowns 6 | . . . . . . . . . . 5 . . . . . . . . . . 1 Energy Bleed 3 | . . . . . . . . . . 3 . . . . . . . . . . . Interference 5 | . . . . . . . . . . 5 . . . . . . . . . . . Matter Decay 1 | . . . . . . . . . . 1 . . . . . . . . . . . Short Circuit 1 | . . . . . . . . . . 1 . . . . . . . . . . . Damage (minor) 1 | . . . . . . . . . . 1 . . . . . . . . . . . Damage (major) 9 | . . . . . . . . . . 9 . . . . . . . . . . . Damage (core) 5 | . . . . . . . . . . 5 . . . . . . . . . . . Siege Activations 22 | . . . . . . . . . . . . 2 . . 1 . . . 2 . 17 Total Turns 518 | . . . . . . . . . . . . 43 . . 1 . . . 10 . 464 Longest Duration 80 | . . . . . . . . . . . . 35 . . 1 . . . 5 . 80 Robots Corrupted 1 | . . . . . . . . . . . . . . . . . . . . . 1 Combat Hostiles 1 | . . . . . . . . . . . . . . . . . . . . . 1 Parts Fried 5 | . . 2 1 . . . . . . . . . . . . . . . . . 2 Impact Corruptions 7 | . . . . . . 1 . . . . . . . 4 . . . 1 . . 1 Robots Melted . | . . . . . . . . . . . . . . . . . . . . . . Combat Hostiles . | . . . . . . . . . . . . . . . . . . . . . . Parts Melted 6 | . . 1 4 . . . . . . . . . . . . 1 . . . . . Heat Transferred 2682 | . . 555 1852 . . . . . . . . 275 . . . . . . . . . Parts Sabotaged . | . . . . . . . . . . . . . . . . . . . . . . Parts Stolen . | . . . . . . . . . . . . . . . . . . . . . . Parts Stripped . | . . . . . . . . . . . . . . . . . . . . . . Power Chain Reactions 3 | . . 1 2 . . . . . . . . . . . . . . . . . . Missiles Intercepted . | . . . . . . . . . . . . . . . . . . . . . . Alert | -11 -10 -9 -8 -7 -7 -7 -7 -6 -6 -6 -5 -5 -5 -5 -5 -5 -4 -4 -4 -4 -3 ------- Run | Jun Mat Mat Mat Fac Low Low Dat Pro Fac DSF Fac Gar Fac Upp Upp War Pro Fac Upp Upp Res Peak Influence 1070 | . 100 430 426 423 . . . . 480 556 296 721 378 . . . . 338 . . 1070 Initial 480 | . . 5 53 142 . . . . 480 339 291 207 378 . . . . 300 . . 36 Average 290 | . 31 144 182 295 . . . . 480 486 295 351 378 . . . . 269 . . 400 Maximum Alert Level 3 | . . 2 2 2 . . . . 2 2 1 3 1 . . . . 1 . . 3 Low Security (%) 33 | . 100 64 65 14 . . . . . . . . . . . . . 17 . . 21 Level 1 41 | . . 34 32 75 . . . . . 30 100 72 100 . . . . 82 . . 24 Level 2 19 | . . . 1 9 . . . . 100 69 . 16 . . . . . . . . 42 Level 3 5 | . . . . . . . . . . . . 11 . . . . . . . . 11 Level 4 . | . . . . . . . . . . . . . . . . . . . . . . Level 5 . | . . . . . . . . . . . . . . . . . . . . . . High Security . | . . . . . . . . . . . . . . . . . . . . . . Max Security . | . . . . . . . . . . . . . . . . . . . . . . Sterilizations 1 | . . . . . . . . . . 1 . . . . . . . . . . . Squads Dispatched 32 | . 2 . 3 5 . . . . . 2 . . . . . . . 3 . . 17 Investigation 4 | . . . 1 . . . . . . . . . . . . . . 2 . . 1 Extermination 5 | . . . . . . . . . . . . . . . . . . . . . 5 Reinforcement 16 | . 2 . 2 3 . . . . . 2 . . . . . . . 1 . . 6 Assault 5 | . . . . . . . . . . . . . . . . . . . . . 5 Garrison 2 | . . . . 2 . . . . . . . . . . . . . . . . . Intercept . | . . . . . . . . . . . . . . . . . . . . . . Searches Triggered . | . . . . . . . . . . . . . . . . . . . . . . Data Miner Redirects 3 | . . . . . . . . . . . . . . . . . . . . . 3 Construction Impeded 2 | . . . 1 . . . . . . . . . . . . . . . . . 1 Haulers Reinforced 1 | . . . . . . . . . . . . . . . . . . . . . 1 Active Scanning Responses . | . . . . . . . . . . . . . . . . . . . . . . Cargo Convoy Interrupts . | . . . . . . . . . . . . . . . . . . . . . . Stealth | -11 -10 -9 -8 -7 -7 -7 -7 -6 -6 -6 -5 -5 -5 -5 -5 -5 -4 -4 -4 -4 -3 --------- Run | Jun Mat Mat Mat Fac Low Low Dat Pro Fac DSF Fac Gar Fac Upp Upp War Pro Fac Upp Upp Res Distress Signals 12 | . 1 1 2 . . . . . . . . . . . . 1 . . . . 7 Communications Jammed . | . . . . . . . . . . . . . . . . . . . . . . Distress Signals . | . . . . . . . . . . . . . . . . . . . . . . Times Spotted 298 | . 14 24 38 22 1 4 . 9 . 10 1 17 . 14 1 26 8 5 7 . 97 Peak Tracking Total 12 | . 3 7 6 4 1 3 . 4 . 4 1 5 . 5 1 12 4 2 4 . 8 Tactical Retreats 9 | . . 1 1 . . . . . . . . 1 . 1 . . . . 1 . 4 Traps | -11 -10 -9 -8 -7 -7 -7 -7 -6 -6 -6 -5 -5 -5 -5 -5 -5 -4 -4 -4 -4 -3 ------- Run | Jun Mat Mat Mat Fac Low Low Dat Pro Fac DSF Fac Gar Fac Upp Upp War Pro Fac Upp Upp Res Traps Triggered 14 | . . . 2 1 . . . . . 1 . 4 . . . . . 2 . . 4 Indirectly . | . . . . . . . . . . . . . . . . . . . . . . Trap Hack Attempts . | . . . . . . . . . . . . . . . . . . . . . . Triggered . | . . . . . . . . . . . . . . . . . . . . . . Disarmed . | . . . . . . . . . . . . . . . . . . . . . . Reprogrammed . | . . . . . . . . . . . . . . . . . . . . . . Reused . | . . . . . . . . . . . . . . . . . . . . . . Traps Extracted . | . . . . . . . . . . . . . . . . . . . . . . Installed . | . . . . . . . . . . . . . . . . . . . . . . Triggered 12 | . . . . . . 1 . . . . . . . . . 11 . . . . . Machines | -11 -10 -9 -8 -7 -7 -7 -7 -6 -6 -6 -5 -5 -5 -5 -5 -5 -4 -4 -4 -4 -3 ---------- Run | Jun Mat Mat Mat Fac Low Low Dat Pro Fac DSF Fac Gar Fac Upp Upp War Pro Fac Upp Upp Res Machines Disabled 2 | . . 1 1 . . . . . . . . . . . . . . . . . . Max in Single Turn 1 | . . 1 1 . . . . . . . . . . . . . . . . . . Garrison Access 1 | . . . . . . . . . . . . . . . . . . . . . 1 Garrison Relay 1 | . . . . . . . . . . . . 1 . . . . . . . . . Machines Repaired . | . . . . . . . . . . . . . . . . . . . . . . Machines Sabotaged . | . . . . . . . . . . . . . . . . . . . . . . Overloaded Fab Kills . | . . . . . . . . . . . . . . . . . . . . . . Hacking | -11 -10 -9 -8 -7 -7 -7 -7 -6 -6 -6 -5 -5 -5 -5 -5 -5 -4 -4 -4 -4 -3 --------- Run | Jun Mat Mat Mat Fac Low Low Dat Pro Fac DSF Fac Gar Fac Upp Upp War Pro Fac Upp Upp Res Machines Accessed 29 | . . 5 3 . . 1 3 . 1 . 1 1 1 2 1 . . 3 . . 7 Terminals 14 | . . 4 3 . . . . . 1 . . 1 . . . . . 1 . . 4 Fabricators 2 | . . . . . . . . . . . . . . . . . . 1 . . 1 Repair Stations 4 | . . 1 . . . . . . . . . . 1 . . . . 1 . . 1 Recycling Units . | . . . . . . . . . . . . . . . . . . . . . . Scanalyzers . | . . . . . . . . . . . . . . . . . . . . . . Garrison Access 2 | . . . . . . . . . . . 1 . . . . . . . . . 1 Total Hacks 93 | . . 20 7 . . 1 24 . 1 . 1 1 3 12 1 . . 7 . . 15 Successful 69 | . . 12 3 . . 1 24 . 1 . 1 1 1 12 1 . . 3 . . 9 Failed 24 | . . 8 4 . . . . . . . . . 2 . . . . 4 . . 6 Catastrophic 5 | . . 2 2 . . . . . . . . . . . . . . . . . 1 Database Lockouts . | . . . . . . . . . . . . . . . . . . . . . . Manual 24 | . . 13 2 . . . . . . . . . . . . 1 . 1 . . 7 Terminals 33 | . . 14 7 . . . . . 1 . . 1 . . . . . 2 . . 8 Fabricators 5 | . . . . . . . . . . . . . . . . . . 2 . . 3 Repair Stations 15 | . . 6 . . . . . . . . . . 3 . . . . 3 . . 3 Recycling Units . | . . . . . . . . . . . . . . . . . . . . . . Scanalyzers . | . . . . . . . . . . . . . . . . . . . . . . Garrison Access 2 | . . . . . . . . . . . 1 . . . . . . . . . 1 Terminal Hacks 52 | . . 5 3 . . 1 24 . 1 . . 1 . 12 1 . . . . . 4 Record 17 | . . . . . . . 6 . . . . . . 11 . . . . . . . Part Schematic 11 | . . 1 . . . . 10 . . . . . . . . . . . . . . Robot Schematic 5 | . . . . . . . 5 . . . . . . . . . . . . . . Robot Analysis 2 | . . 2 . . . . . . . . . . . . . . . . . . . Prototype ID Bank 5 | . . . 2 . . . 3 . . . . . . . . . . . . . . Open Door 3 | . . . . . . 1 . . . . . . . 1 1 . . . . . . Open DSF 2 | . . . . . . . . . 1 . . . . . . . . . . . 1 Branch Access Points 1 | . . . . . . . . . . . . . . . . . . . . . 1 Emergency Access Points 1 | . . . . . . . . . . . . 1 . . . . . . . . . Terminal Index 1 | . . 1 . . . . . . . . . . . . . . . . . . . Unreport Threat 3 | . . 1 1 . . . . . . . . . . . . . . . . . 1 Locate Traps 1 | . . . . . . . . . . . . . . . . . . . . . 1 Fabricator Hacks 3 | . . . . . . . . . . . . . . . . . . 1 . . 2 Load Schematic 2 | . . . . . . . . . . . . . . . . . . 1 . . 1 Build 1 | . . . . . . . . . . . . . . . . . . . . . 1 Repair Station Hacks 8 | . . 5 . . . . . . . . . . 1 . . . . 1 . . 1 Scan Component 6 | . . 3 . . . . . . . . . . 1 . . . . 1 . . 1 Repair 2 | . . 2 . . . . . . . . . . . . . . . . . . . Recycling Unit Hacks . | . . . . . . . . . . . . . . . . . . . . . . Scanalyzer . | . . . . . . . . . . . . . . . . . . . . . . Garrison Access Hacks 1 | . . . . . . . . . . . 1 . . . . . . . . . . Unlock Access 1 | . . . . . . . . . . . 1 . . . . . . . . . . Unauthorized Hacks 5 | . . 2 . . . . . . . . . . . . . . . 1 . . 2 Terminals 3 | . . 2 . . . . . . . . . . . . . . . . . . 1 Botnet 3 | . . 2 . . . . . . . . . . . . . . . . . . 1 Fabricators 2 | . . . . . . . . . . . . . . . . . . 1 . . 1 Prioritize 1 | . . . . . . . . . . . . . . . . . . . . . 1 Recompile 1 | . . . . . . . . . . . . . . . . . . 1 . . . Repair Stations . | . . . . . . . . . . . . . . . . . . . . . . Recycling Units . | . . . . . . . . . . . . . . . . . . . . . . Scanalyzers . | . . . . . . . . . . . . . . . . . . . . . . Garrison Access . | . . . . . . . . . . . . . . . . . . . . . . Data Cores Recovered 1 | . . . . . . . . . . . . . . . . . . . . . 1 Used 1 | . . . . . . . . . . . . . . . . . . . . . 1 Hacking Detections 17 | . . 3 3 . . . . . . . 1 1 1 . . . . 3 . . 5 Full Trace Events 2 | . . . . . . . . . . . . . . . . . . 1 . . 1 Feedback Events 2 | . . . . . . . . . . . . . . . . . . 1 . . 1 Corruption 2 | . . . . . . . . . . . . . . . . . . 1 . . 1 Feedback Blocked . | . . . . . . . . . . . . . . . . . . . . . . Robot Schematics Acquired 5 | . . . . . . . 5 . . . . . . . . . . . . . . Robots Built . | . . . . . . . . . . . . . . . . . . . . . . Authchips . | . . . . . . . . . . . . . . . . . . . . . . Time . | . . . . . . . . . . . . . . . . . . . . . . Total Robot Build Rating . | . . . . . . . . . . . . . . . . . . . . . . Part Schematics Acquired 11 | . . 1 . . . . 10 . . . . . . . . . . . . . . Parts Built 1 | . . . . . . . . . . . . . . . . . . . . . 1 Authchips 1 | . . . . . . . . . . . . . . . . . . . . . 1 Time 76 | . . . . . . . . . . . . . . . . . . . . . 76 Total Part Build Rating 5 | . . . . . . . . . . . . . . . . . . . . . 5 Parts Repaired 2 | . . 2 . . . . . . . . . . . . . . . . . . . Time 115 | . . 115 . . . . . . . . . . . . . . . . . . . Parts Recycled . | . . . . . . . . . . . . . . . . . . . . . . Recycled Matter . | . . . . . . . . . . . . . . . . . . . . . . Retrieved Matter . | . . . . . . . . . . . . . . . . . . . . . . Retrieved Components . | . . . . . . . . . . . . . . . . . . . . . . Parts Scanalyzed . | . . . . . . . . . . . . . . . . . . . . . . Part Schematics Acquired . | . . . . . . . . . . . . . . . . . . . . . . Parts Damaged . | . . . . . . . . . . . . . . . . . . . . . . Bothacking | -11 -10 -9 -8 -7 -7 -7 -7 -6 -6 -6 -5 -5 -5 -5 -5 -5 -4 -4 -4 -4 -3 ------------ Run | Jun Mat Mat Mat Fac Low Low Dat Pro Fac DSF Fac Gar Fac Upp Upp War Pro Fac Upp Upp Res Used RIF Installer . | . . . . . . . . . . . . . . . . . . . . . . Robots Hacked . | . . . . . . . . . . . . . . . . . . . . . . Non-combat . | . . . . . . . . . . . . . . . . . . . . . . Combat . | . . . . . . . . . . . . . . . . . . . . . . Robot Hacks Applied . | . . . . . . . . . . . . . . . . . . . . . . Relay Couplers Released 5 | . . . . . . . . . . . . 4 . . . . . . . . 1 Machine Destruction 5 | . . . . . . . . . . . . 4 . . . . . . . . 1 Fabnet Peak Effective % . | . . . . . . . . . . . . . . . . . . . . . . Robots Rewired 1 | . . . . 1 . . . . . . . . . . . . . . . . . Allies Hacked . | . . . . . . . . . . . . . . . . . . . . . . Hacks Repelled . | . . . . . . . . . . . . . . . . . . . . . . Allies | -11 -10 -9 -8 -7 -7 -7 -7 -6 -6 -6 -5 -5 -5 -5 -5 -5 -4 -4 -4 -4 -3 -------- Run | Jun Mat Mat Mat Fac Low Low Dat Pro Fac DSF Fac Gar Fac Upp Upp War Pro Fac Upp Upp Res Total Allies 2 | . . . . 1 . . . 1 . . . . . . . . . . . . . Largest Group 1 | . . . . 1 . . . 1 1 1 . . . . . . . . . . . Highest-Rated Group 96 | . . . . 21 . . . 96 96 96 . . . . . . . . . . . Highest-Rated Ally 96 | . . . . 21 . . . 96 96 96 . . . . . . . . . . . Total Orders . | . . . . . . . . . . . . . . . . . . . . . . Ally Attacks 35 | . . . . 1 . . . 16 . 18 . . . . . . . . . . . Total Damage 1129 | . . . . . . . . 351 . 778 . . . . . . . . . . . Kills 4 | . . . . . . . . 1 . 3 . . . . . . . . . . . Allies Corrupted . | . . . . . . . . . . . . . . . . . . . . . . Allies Melted . | . . . . . . . . . . . . . . . . . . . . . . Intel | -11 -10 -9 -8 -7 -7 -7 -7 -6 -6 -6 -5 -5 -5 -5 -5 -5 -4 -4 -4 -4 -3 ------- Run | Jun Mat Mat Mat Fac Low Low Dat Pro Fac DSF Fac Gar Fac Upp Upp War Pro Fac Upp Upp Res Robot Analysis Total 2 | . . 2 . . . . . . . . . . . . . . . . . . . Derelict Logs Recovered 11 | . . . . . 1 3 . 1 . . . . . 1 2 . 2 . . 1 . Drone Launches . | . . . . . . . . . . . . . . . . . . . . . . Drone Recoveries . | . . . . . . . . . . . . . . . . . . . . . . Exploration | -11 -10 -9 -8 -7 -7 -7 -7 -6 -6 -6 -5 -5 -5 -5 -5 -5 -4 -4 -4 -4 -3 ------------- Run | Jun Mat Mat Mat Fac Low Low Dat Pro Fac DSF Fac Gar Fac Upp Upp War Pro Fac Upp Upp Res Turns Passed 16608 | . 495 1327 1253 794 536 1074 267 1039 34 271 131 1096 136 1025 1050 935 826 557 552 235 2975 Spaces Moved 6163 | 1 259 625 552 369 325 362 82 312 14 79 50 330 57 396 425 322 314 197 200 96 796 Core . | . . . . . . . . . . . . . . . . . . . . . . Treads 6139 | . 236 625 552 369 325 362 82 312 14 79 50 330 57 396 425 322 314 197 200 96 796 Legs 24 | 1 23 . . . . . . . . . . . . . . . . . . . . Wheels . | . . . . . . . . . . . . . . . . . . . . . . Hover . | . . . . . . . . . . . . . . . . . . . . . . Flight . | . . . . . . . . . . . . . . . . . . . . . . Fastest Speed 120 | 120 120 160 160 160 162 162 322 322 241 240 240 240 242 243 243 245 245 246 245 245 238 Average Speed 222 | 120 156 160 160 161 162 289 322 322 241 240 241 241 242 243 243 245 245 246 245 245 240 Slowest Speed 322 | 120 160 160 160 162 162 322 322 322 241 241 242 242 243 243 246 246 245 246 246 245 245 Overloaded Moves . | . . . . . . . . . . . . . . . . . . . . . . Propulsion Burnouts . | . . . . . . . . . . . . . . . . . . . . . . Robots Hopped . | . . . . . . . . . . . . . . . . . . . . . . Cave-ins Triggered . | . . . . . . . . . . . . . . . . . . . . . . Exploration Rate (%) 37 | 2 41 43 51 12 57 53 69 50 1 69 2 34 2 54 65 52 59 5 46 18 29 Regions Visited 21 Branch Regions 10 Pre-discovered Areas 7 | . . . . . . . 1 1 . . . . . 2 1 . 2 . . . . Known Exits Taken 3 | . . . . . . . . . 1 . 1 . 1 . . . . . . . . Unknown Exits Taken 16 | 1 1 1 1 1 1 1 1 1 . . . . . 1 1 1 1 1 1 1 . Scrap Searched 12 | . . . . . 1 1 . 1 . . . . . 1 1 . 3 . 3 1 . Spaces Dug 9 | . . . . . . . . . . . . 1 . . . . . . . . 8 Terrain Destroyed 110 | . . 26 41 . . . . 8 . . . 6 . 1 . . . 2 3 . 23 Melee 8 | . . . . . . . . . . . . . . . . . . . . . 8 Projectile 11 | . . . . . . . . . . . . . . 1 . . . . . . 10 AOE 81 | . . 26 41 . . . . 8 . . . 6 . . . . . . . . . Terrain Rammed . | . . . . . . . . . . . . . . . . . . . . . . Walls Destroyed . | . . . . . . . . . . . . . . . . . . . . . . Machines Disabled . | . . . . . . . . . . . . . . . . . . . . . . Actions | -11 -10 -9 -8 -7 -7 -7 -7 -6 -6 -6 -5 -5 -5 -5 -5 -5 -4 -4 -4 -4 -3 --------- Run | Jun Mat Mat Mat Fac Low Low Dat Pro Fac DSF Fac Gar Fac Upp Upp War Pro Fac Upp Upp Res Total 8017 | . 312 859 758 496 329 384 87 330 15 130 59 522 56 429 435 454 353 236 235 97 1441 Wait 651 | . 10 129 39 1 . 1 . 1 . . . 31 . 1 6 101 25 . 12 . 294 Move 6143 | . 258 624 551 368 324 361 81 311 13 78 50 329 56 395 424 321 313 196 199 95 796 Hop . | . . . . . . . . . . . . . . . . . . . . . . Pick Up 135 | . 7 11 19 13 . 7 . . . 13 1 17 . 2 . 7 . 2 1 2 33 Fast Attach 47 | . 2 8 6 4 . 1 3 . . 2 . 4 . 1 . 1 . . 2 . 13 Attach 75 | . . 1 6 5 . 2 . . 2 3 4 10 . 3 . 2 . 6 4 . 27 Detach 2 | . . . . . . . . . . . . . . . . . . . . . 2 Swap 113 | . 5 13 8 12 . . . 2 . 6 1 9 . 1 1 2 . 4 1 . 48 Drop 153 | . 7 13 25 16 . 4 3 . . 2 2 23 . 4 . 7 . 3 3 . 41 Fire 627 | . 20 48 100 66 5 7 . 15 . 26 . 86 . 21 4 13 15 19 12 . 170 Melee 10 | . . . . . . . . . . . . . . . . . . . . . 10 Ram . | . . . . . . . . . . . . . . . . . . . . . . Kick . | . . . . . . . . . . . . . . . . . . . . . . Crush 43 | . 3 12 4 9 . 1 . 1 . . 1 2 . 1 . . . 2 . . 7 Escape Stasis 12 | . . . . . . . . . . . . 8 . . . . . 4 . . . Rewire 6 | . . . . 2 . . . . . . . 3 . . . . . . 1 . . Trap . | . . . . . . . . . . . . . . . . . . . . . . Miscellaneous . | . . . . . . . . . . . . . . . . . . . . . . Route ------- -11/Junkyard -10/Materials -9/Materials -8/Materials (discovered 2 exits: [*Fac x2]) -7/Factory (discovered 2 exits: *Fac / [*Low]) -7/Lower Caves -7/Lower Caves -7/Data Miner -6/Proximity Caves -6/Factory (discovered 2 exits: Low / DSF) -6/DSF -5/Factory (discovered 2 exits: Upp / Gar) -5/Garrison -5/Factory -5/Upper Caves -5/Upper Caves -5/Warlord -4/Proximity Caves -4/Factory -4/Upper Caves -4/Upper Caves -3/Research (discovered 2 exits: Tes x2) History --------- Turn | Location | Event 1 | -11/Junkyard | Discovered new exit (range 0) 1 | -11/Junkyard | Entered Materials 309 | -10/Materials | Build established: Mutant 453 | -10/Materials | Discovered new exit (range 7) 496 | -10/Materials | Entered another Materials area 496 | -9/Materials | Evolved 2 slots: Propulsion x1, Utility x1 1203 | -9/Materials | Destroyed 8 combat bots 1656 | -9/Materials | Discovered new exit (range 4) 1739 | -9/Materials | Repaired Broken Hvy. Ion Engine 1791 | -9/Materials | Repaired Imp. EM Shotgun 1823 | -9/Materials | Entered another Materials area 1823 | -8/Materials | Evolved 2 slots: Propulsion x1, Utility x1 2576 | -8/Materials | Discovered new exit (range 7) 2585 | -8/Materials | Build established: Scavenger-Mutant 2929 | -8/Materials | Destroyed 7 combat bots 2937 | -8/Materials | Lost 3 parts (1n2u) 3061 | -8/Materials | Discovered new exit (range 3) 3076 | -8/Materials | Entered Factory 3076 | -7/Factory | Evolved 2 slots: Utility x1, Weapon x1 3195 | -7/Factory | Discovered new exit (range 4) 3327 | -7/Factory | Discovered new exit (range 4) 3618 | -7/Factory | Build established: Scavenger-Tank 3692 | -7/Factory | Garrison activated, responded to threat 3870 | -7/Factory | Entered Lower Caves 3892 | -7/Lower Caves | Learned Factory terminal intel 4235 | -7/Lower Caves | Encountered a Warlord checkpoint 4390 | -7/Lower Caves | Discovered new exit (range 11) 4406 | -7/Lower Caves | Entered another Lower Caves area 4854 | -7/Lower Caves | Build established: Hauler-Tank 5377 | -7/Lower Caves | Discovered new exit (range 7) 5426 | -7/Lower Caves | Learned Factory emergency access door positions 5480 | -7/Lower Caves | Entered Data Miner 5480 | -7/Data Miner | Discovered new exit (range 6) 5543 | -7/Data Miner | Met Data Miner 5601 | -7/Data Miner | Learned location of Section 7 (-2) 5601 | -7/Data Miner | Acquired the access code to Warlord's prototype stash 5646 | -7/Data Miner | Received God Mode back door access code from Data Miner 5747 | -7/Data Miner | Entered Proximity Caves 5756 | -6/Proximity Caves | Spotter reported a threat 5790 | -6/Proximity Caves | Escorted by Enhanced Grunt 5809 | -6/Proximity Caves | Spotter reported a threat 5941 | -6/Proximity Caves | Spotter reported a threat 6760 | -6/Proximity Caves | Discovered new exit (range 9) 6786 | -6/Proximity Caves | Entered Factory 6786 | -6/Factory | Accompanied by 1 ally 6786 | -6/Factory | Evolved 2 slots: Propulsion x2 6787 | -6/Factory | Identified exit to Lower Caves 6789 | -6/Factory | Loaded intel: 28 terminal locations 6820 | -6/Factory | Identified exit to DSF 6820 | -6/Factory | Entered DSF 6820 | -6/DSF | Accompanied by 1 ally 6840 | -6/DSF | Additional patrols routed to DSF 6933 | -6/DSF | Lost 3 parts (1n1u1w) 6953 | -6/DSF | Sterilization system engaged 6973 | -6/DSF | Ambient heat levels rising (+10) 6988 | -6/DSF | Ambient heat levels rising (+10) 7003 | -6/DSF | Ambient heat levels rising (+10) 7018 | -6/DSF | Ambient heat levels rising (+10) 7033 | -6/DSF | Ambient heat levels rising (+10) 7048 | -6/DSF | Ambient heat levels rising (+10) 7053 | -6/DSF | Discovered new exit (range 16) 7063 | -6/DSF | Ambient heat levels rising (+10) 7078 | -6/DSF | Ambient heat levels rising (+10) 7084 | -6/DSF | Core integrity fell below 50% 7091 | -6/DSF | Entered Factory 7091 | -5/Factory | Evolved 2 slots: Power x1, Utility x1 7092 | -5/Factory | Identified exit to Upper Caves 7222 | -5/Factory | Identified exit to Garrison 7222 | -5/Factory | Entered Garrison 7288 | -5/Garrison | Spotted B-75 Beast 7460 | -5/Garrison | Triggered checkpoint 7517 | -5/Garrison | Garrison Relay disabled 7644 | -5/Garrison | Heavy support dispatched to Factory 7869 | -5/Garrison | Triggered checkpoint 7927 | -5/Garrison | Destroyed B-75 Beast 8069 | -5/Garrison | Lost 3 parts (1n1u1w) 8127 | -5/Garrison | Heavy support dispatched to Factory 8169 | -5/Garrison | Warlord forces raided the area 8188 | -5/Garrison | Triggered checkpoint 8234 | -5/Garrison | Triggered checkpoint 8299 | -5/Garrison | Discovered new exit (range 9) 8318 | -5/Garrison | Entered Factory 8318 | -5/Factory | Discovered exit to Upper Caves (range 16) 8454 | -5/Factory | Entered Upper Caves 8460 | -5/Upper Caves | Met a Warlord Commander 8461 | -5/Upper Caves | Learned location of Warlord (-5) 8469 | -5/Upper Caves | Found Encrypted Comm Array 8703 | -5/Upper Caves | Attracted the attention of an 0b10 checkpoint 8882 | -5/Upper Caves | Learned Factory terminal intel 9118 | -5/Upper Caves | Learned location of Armory (-4) 9118 | -5/Upper Caves | Learned Armory trap positions 9118 | -5/Upper Caves | Learned Factory garrison access intel 9450 | -5/Upper Caves | Discovered new exit (range 6) 9479 | -5/Upper Caves | Entered another Upper Caves area 9481 | -5/Upper Caves | Attracted the attention of an 0b10 checkpoint 10032 | -5/Upper Caves | Learned Factory garrison access intel 10485 | -5/Upper Caves | Discovered new exit (range 7) 10529 | -5/Upper Caves | Entered Warlord 10611 | -5/Warlord | System corruption cleaned by Quarantine Array 10912 | -5/Warlord | Met Warlord 10937 | -5/Warlord | Warlord's base attacked by MAIN.C 10939 | -5/Warlord | Opened Warlord's prototype stash 10951 | -5/Warlord | Found Prototype Reactor 10964 | -5/Warlord | Found Prototype Processor 10970 | -5/Warlord | Found Prototype Hackware 11287 | -5/Warlord | Warlord forces counterattacked 11295 | -5/Warlord | Spotted Executioner 11301 | -5/Warlord | Spotted Executioner 11303 | -5/Warlord | Identified Exp. Core Analyzer 11311 | -5/Warlord | Destroyed Executioner 11396 | -5/Warlord | Spotted Executioner 11403 | -5/Warlord | Spotted Executioner 11444 | -5/Warlord | Discovered new exit (range 9) 11464 | -5/Warlord | Entered Proximity Caves 11578 | -4/Proximity Caves | Learned location of Quarantine (-2) 11607 | -4/Proximity Caves | Build established: Hauler-Gunner 11760 | -4/Proximity Caves | Spotter reported a threat 11813 | -4/Proximity Caves | Spotter reported a threat 12253 | -4/Proximity Caves | Discovered new exit (range 12) 12290 | -4/Proximity Caves | Entered Factory 12290 | -4/Factory | Evolved 2 slots: Propulsion x1, Utility x1 12291 | -4/Factory | Loaded intel: 26 terminal locations 12292 | -4/Factory | Loaded intel: 4 garrison access locations 12524 | -4/Factory | Identified System Mapper 12660 | -4/Factory | Discovered new exit (range 12) 12847 | -4/Factory | Entered Upper Caves 12965 | -4/Upper Caves | Attracted the attention of an 0b10 checkpoint 13366 | -4/Upper Caves | Discovered new exit (range 13) 13399 | -4/Upper Caves | Entered another Upper Caves area 13468 | -4/Upper Caves | Discovered new exit (range 22) 13539 | -4/Upper Caves | Learned Research terminal intel 13634 | -4/Upper Caves | Entered Research 13634 | -3/Research | Evolved 2 slots: Utility x1, Weapon x1 13635 | -3/Research | Loaded intel: 23 terminal locations 14355 | -3/Research | Build established: Scavenger-Gunner 14703 | -3/Research | Identified Vortex Chain Reactor 14953 | -3/Research | Incoming assault squad redirected 15104 | -3/Research | Spotted B-86 Titan 15134 | -3/Research | First assault squad dispatched 15134 | -3/Research | Destroyed B-86 Titan 15153 | -3/Research | Incoming assault squad redirected 15249 | -3/Research | Fabricated Exp. Targeting Computer (x1) 15327 | -3/Research | Build established: Scavenger-Tank 15653 | -3/Research | Incoming assault squad redirected 15732 | -3/Research | Identified exit to Testing 15924 | -3/Research | Spotted B-86 Titan 15948 | -3/Research | Destroyed B-86 Titan 16250 | -3/Research | System corruption reached 10% 16605 | -3/Research | Destroyed 10 combat bots 16609 | -3/Research | Self-destructed Last Messages --------------- 16596_ K-01 Serf collects debris. 16598_ U-05 Engineer builds a Wall. 16598_ Slug penetrates Wall. 16599_ K-01 Serf collects debris. 16601_ U-05 Engineer builds a Wall. 16602_ =3INPP8 V2DPNKQYYQ 16602_ K-01 Serf collects debris. 16604_ U-05 Engineer builds a Wall. 16605_ Slug penetrates Wall. 16605_ Slug penetrates U-05 Engineer. 16605_ U-05 Engineer destroyed. 16605_ U-05 Engineer suffers critical hit (Destroy). 16605_ Destroyed Welding Torch. 16605_ Slug penetrates U-05 Engineer. 16606_ U-05 Engineer builds a Wall. 16606_ K-01 Serf collects debris. 16608_ ALERT: Construction progress impeded, dispatching reinforcements to local area. 16608_ Penetrated by Slug. Map ----- +----------------------------------------------------+ | #????????????????????????????????????????????? | | ????????????????????????????????????????????? | | #+####???????????????????????????????????????????? | | ?????????????????????????????????????????????????? | | ?????????????????????????????????????????????????? | | ?????????????????????????????????????????????????? | | ?????????????????????????????????????????????????? | | ?????????????????????????????????????????????????? | | ?????????????????????????????????????????????????? | | ?????????????????????????????????????????????????? | | ?????????????????????????????????????????????????? | | ?????????????????????????????????????????????????? | | ?????????????????????????????????????????????????? | | ?????????????????????????????????????????????????? | | ?????????????????????????????????????????????????? | | ?????????????????????????????????????????????????? | | ????????????? ??????????????????????????????????? | | ????????????? !?????????????????????????????????? | | ????????????##+##########????????????????????????? | | ???????????? =u%!*![!= ????????????????????????? | | ??????????? [*!%k[!! ????##??????????????????? | | ????????????? =*!*g%g==???# #??????????????????? | | ##???????????????%=%Hu=[=??# #???????????????????? | | ???????????????????###[g!## #????????????????????? | | ?????????????????????#[=g#;####################### | | ?????????????????????# ! @ =h%!%%/===%[ | | ?????????????????????#### ########+######### | | ????????????????????????#% #?????? !*???????? | | ????????????????????????# +?????? ???????? | | ????????????????????????#! ; ???? ???#### | | ???????????????????######!! # ?? ???# | | ???????????????????+ !!%!!! +? # ??# | | ???????????????????##############???[; = ??# | | ?????????????????????????????????????########?#!! | | ??????????????????????????????????????????????#!! | | ??????????????????????????????????????????????# | | ??????????????????????????????????????????????# | | ??????????????????????????????????????????????# | | ??????????????????????????????????????????????# | | ??????????????????????????????????????????????# = | | ??????????????????????????????????????????????# | | ??????????????????????????????????????????????# | | ??????????????????????????????????????????######## | | ????????????????????????????????????????### | | ????????????????????????????????????????+ | | ????????????????????????????????????????### | | ??????????????????????????????????????????# | | ??????????????????????????????????????????####+### | | ?????????????????????????????????????????????????# | | ?????????????????????????????????????????????????# | +----------------------------------------------------+ Best States ------------- Heat Dissipation 77 Coolant Potential 65 Energy Generation 55 Energy Capacity 700 Matter Stores 300 Matter Capacity 300 Sight Range 23 Terrain Scan Density 10 Jamming Range 12 Armor Coverage 1200 Resistance: KI 20 Resistance: TH 20 Resistance: EM 25 Weapon Cycling 15 Evasion (%) 50 Targeting Accuracy 12 Core Analysis 8 Recoil Reduction 7 Salvage Targeting 4 Offensive Hacking 20 Defensive Hacking 14 Authchip Count 1 Item Schematics ----------------- Huge Storage Unit | -9/Materials | Hacked Combat Drone Bay | -7/Data Miner | Free Lgt. Regenerative Plating | -7/Data Miner | Free Biomechanical Wings | -7/Data Miner | Free Exp. Targeting Computer | -7/Data Miner | Free Com. Ion Cannon | -7/Data Miner | Free Cmb. Gravmag System | -7/Data Miner | Free Imp. Shock Absorption System | -7/Data Miner | Free Enh. Gauss Cannon | -7/Data Miner | Free Cloaking Device | -7/Data Miner | Free Imp. Weapon Cycler | -7/Data Miner | Free Robot Schematics ------------------ E-15 Imp | -7/Data Miner | Free W-25 Informer | -7/Data Miner | Free H-55 Commando | -7/Data Miner | Free O-24 Administrator | -7/Data Miner | Free Y-54 Guardian | -7/Data Miner | Free Fabricated ------------ Exp. Targeting Computer | x1 | -3/Research | Authchip Alien Tech Used ----------------- None Achievements -------------- None Challenges ------------ None Game ------ Seed OmegaFissionScythe Manual? 0 Play Time 01:17:50 Cumulative 851.9 hours Start 2023.04.04 @ 21:59:34 End 2023.04.04 @ 23:15:38 Sessions 1 Manual Loads 0 Difficulty Rogue Special Mode None Game No. 1278 Rogue 1278 Adventurer 0 Explorer 0 Win Type - Total 81 Types 47/1/14/14/4/0/0/1/0 Lore% 92 Gallery% 92 Achievement% 85 Wizard Run 0 Options --------- ASCII 1 Keyboard 0 Movement Numpad Keybinds 0 Fullscreen 0 Font 14/SmallcapsGlow Map View 76x50 Tactical HUD 1 Map Filters NONE Filters NONE Steam 1 RUN: 49c834f7-a13a-4c10-a533-18075463dc94